bitfinex-derivatives/quotes_ETHF0:USTF0_20260226
["timestamp","ask_amount","ask_price","bid_price","bid_amount"]
[1772064768758,3.15107252,2064.4,2063.8,3.0213509]
[1772064770360,6.347,2064.9,2063.8,3.0213509]
[1772064770561,2.4224,2064.7,2063.8,3.0213509]
[1772064770763,3.15107252,2064.6,2063.8,3.0213509]
[1772064770960,5.57347252,2064.6,2063.8,3.0213509]
[1772064771159,3.15107252,2064.5,2063.8,3.0213509]
[1772064771955,3.15107252,2064.7,2063.8,3.0213509]
[1772064772163,0.24207,2065.3,2064.0,3.0213509]
[1772064772164,3.15107252,2065.1,2064.0,3.0213509]
[1772064772363,3.15107252,2065.1,2064.1,1.96848065]
[1772064772561,3.15107252,2065.2,2064.2,3.0213509]
[1772064772764,3.15107252,2065.1,2064.2,3.0213509]
[1772064773757,1.96848065,2065.0,2064.0,7.03924689]
[1772064774062,3.15107252,2064.6,2063.8,3.0213509]
[1772064774965,3.15107252,2064.5,2063.8,3.0213509]
[1772064775165,3.15107252,2064.5,2063.9,3.0213509]
[1772064775466,5.57347252,2064.5,2063.9,3.0213509]
[1772064776757,6.347,2065.3,2064.2,3.08837698]
[1772064776758,3.26248758,2064.9,2064.2,3.08837698]
[1772064777368,5.54845484,2064.9,2064.2,3.08837698]
[1772064777570,6.347,2065.3,2064.3,3.08837698]
[1772064777766,3.26248758,2065.6,2064.6,3.08837698]
[1772064778169,3.26248758,2065.5,2064.6,3.08837698]
[1772064778365,3.26248758,2065.4,2064.6,3.08837698]
[1772064778575,3.26248758,2065.2,2064.5,3.08837698]
[1772064778867,3.26248758,2065.1,2064.3,7.10627297]
[1772064779071,3.26248758,2065.1,2064.3,3.08837698]
[1772064779466,5.54845484,2064.9,2064.3,3.08837698]
[1772064779667,3.26248758,2064.8,2064.2,3.08837698]
[1772064779867,3.26248758,2064.8,2064.0,7.10627297]
[1772064780271,3.26248758,2064.8,2063.9,4.01789599]
[1772064780567,3.26248758,2064.5,2063.8,3.08837698]
[1772064780770,3.26248758,2064.4,2063.7,0.00513549]
[1772064780970,3.26248758,2064.2,2063.7,0.00513549]
[1772064781275,3.26806402,2064.2,2063.4,7.10627297]
[1772064781573,3.26248758,2064.1,2063.5,3.08837698]
[1772064781969,5.54845484,2064.1,2063.5,3.08837698]
[1772064782168,5.54845484,2064.1,2063.5,3.09308757]
[1772064782369,2.28596726,2064.0,2063.5,3.09308757]
[1772064782671,3.26248758,2063.9,2063.5,0.00471059]
[1772064782866,5.54845484,2063.9,2063.5,0.00471059]
[1772064783067,2.28596726,2063.9,2063.5,3.09308757]
[1772064783370,0.00557644,2064.2,2063.7,3.08837698]
[1772064783571,3.26248758,2064.6,2063.9,3.08837698]
[1772064783766,5.54845484,2064.6,2063.9,3.08837698]
[1772064783972,3.26248758,2064.6,2063.9,3.08837698]
[1772064784174,2.28596726,2064.4,2063.9,3.08837698]
[1772064784573,3.26248758,2064.6,2063.9,3.08837698]
[1772064784774,3.26831845,2064.4,2063.9,3.08837698]
[1772064784971,0.00583087,2064.4,2063.9,3.08837698]
[1772064785170,2.28596726,2064.3,2063.9,3.08837698]
[1772064786877,2.28596726,2064.2,2063.9,3.08837698]
[1772064787077,0.00583087,2064.4,2063.9,3.08837698]
[1772064787377,2.28596726,2064.3,2063.9,3.08837698]
[1772064787576,0.00583087,2064.4,2063.9,3.08837698]
[1772064787877,2.28596726,2064.3,2063.9,3.08837698]
[1772064788076,0.00583087,2064.4,2063.9,3.08837698]
[1772064788377,2.28596726,2064.3,2063.9,3.08837698]
[1772064788877,2.28596726,2064.2,2063.9,3.08837698]
[1772064789077,0.00583087,2064.4,2063.9,3.08837698]
[1772064789578,2.28596726,2064.3,2063.9,3.08837698]
[1772064789877,3.26248758,2064.8,2063.9,3.08837698]
[1772064790073,3.26248758,2064.8,2063.8,4.01789599]
[1772064790074,3.26248758,2064.8,2064.0,7.10627297]
[1772064790380,3.26248758,2064.8,2064.1,3.08837698]
[1772064790775,3.26693059,2064.8,2064.1,3.08837698]
[1772064791474,0.00444301,2064.8,2064.1,3.08837698]
[1772064791679,0.00444301,2064.8,2064.3,3.08837698]
[1772064792785,0.00444301,2064.8,2064.3,7.10627297]
[1772064792987,0.00444301,2064.8,2064.4,3.08837698]
[1772064793185,7.05580821,2065.0,2064.4,3.08837698]
[1772064793582,3.26248758,2065.2,2064.5,3.08837698]
[1772064793789,3.26248758,2065.4,2064.7,3.08837698]
[1772064794282,3.26248758,2065.6,2064.9,1.96848065]
[1772064794481,3.26248758,2065.6,2065.0,3.08837698]
[1772064794686,3.26248758,2066.1,2065.1,3.08837698]
[1772064794885,3.26248758,2065.5,2064.9,4.01789599]
[1772064795186,3.26248758,2065.2,2064.4,6.06038072]
[1772064795386,3.26749195,2065.2,2064.4,3.0941982]
[1772064798188,0.00500437,2065.2,2064.4,3.0941982]
[1772064798488,3.26248758,2065.6,2064.7,3.08837698]
[1772064798688,3.26248758,2065.6,2064.8,3.08837698]
[1772064799493,3.2659177,2065.6,2064.8,3.08837698]
[1772064799691,0.00343012,2065.6,2064.8,3.08837698]
[1772064800191,3.2659177,2065.6,2064.8,3.08837698]
[1772064800582,3.2659177,2065.6,2064.6,9.1487577]
[1772064800786,3.26248758,2065.5,2064.6,3.08837698]
[1772064801185,1.96848065,2065.4,2064.4,10.2901982]
[1772064801383,3.26248758,2065.1,2064.4,10.2901982]
[1772064801789,3.26248758,2065.0,2064.5,3.08837698]
[1772064802091,3.26248758,2065.2,2064.5,3.08837698]
[1772064803486,3.26248758,2065.2,2064.4,7.20182122]
[1772064803995,3.26248758,2065.2,2064.4,10.2901982]
[1772064804294,3.26248758,2065.2,2064.5,3.08837698]
[1772064806095,3.08234938,2065.4,2064.5,3.08837698]
[1772064807891,3.08234938,2065.4,2064.4,10.32260658]
[1772064808690,3.08234938,2065.2,2064.4,0.00582122]
[1772064808885,3.08234938,2065.0,2064.4,3.12660658]
[1772064810286,3.08234938,2064.8,2063.9,16.62624769]
[1772064810491,3.08234938,2064.6,2063.7,16.39116608]
[1772064810690,3.08234938,2064.6,2063.7,3.12078536]
[1772064811087,3.08234938,2064.4,2063.5,3.12078536]
[1772064811290,3.08234938,2064.4,2063.5,3.12664805]
[1772064813592,3.13918196,2064.2,2063.5,0.00586269]
[1772064813792,3.13918196,2063.9,2063.0,1.3165557]
[1772064813998,3.38141196,2063.9,2063.0,1.3165557]
[1772064814495,3.38141196,2063.9,2063.0,4.3522025]
[1772064814795,3.38688475,2063.9,2063.0,4.35592617]
[1772064814995,3.38688475,2063.9,2063.0,1.32027937]
[1772064815889,3.38688475,2063.9,2062.7,3.0356468]
[1772064817001,3.38688475,2063.9,2062.7,3.03992048]
[1772064817496,3.13918196,2063.3,2062.7,0.00427368]
[1772064817696,3.13918196,2063.2,2062.7,0.00427368]
[1772064817897,3.13918196,2063.2,2062.4,3.0356468]
[1772064818896,3.13918196,2063.2,2062.4,3.03922164]
[1772064819093,3.13918196,2063.7,2062.5,1.97001005]
[1772064819299,3.14465475,2063.9,2063.0,3.0356468]
[1772064819499,3.13918196,2064.3,2063.4,3.0356468]
[1772064819699,9.48818196,2064.5,2063.4,3.0356468]
[1772064820399,3.13918196,2064.5,2063.4,3.0356468]
[1772064820806,3.14322395,2064.5,2063.4,3.0356468]
[1772064823802,3.14322395,2064.5,2063.1,3.0356468]
[1772064824907,3.13918196,2064.2,2063.1,3.0356468]
[1772064825208,3.13918196,2064.0,2063.1,3.0356468]
[1772064825409,6.93250259,2063.9,2063.1,3.0356468]
[1772064826608,3.13918196,2063.8,2062.9,3.0356468]
[1772064831016,3.13918196,2064.0,2062.9,3.0356468]
[1772064832514,6.349,2064.1,2063.0,3.0356468]
[1772064833011,6.349,2064.1,2063.1,3.0356468]
[1772064833312,3.13918196,2064.2,2063.3,3.0356468]
[1772064834211,3.13918196,2064.2,2063.1,3.0356468]
[1772064835615,3.13918196,2064.2,2063.2,3.1042455]
[1772064837110,3.13918196,2064.2,2063.2,9.16462622]
[1772064837316,3.13918196,2064.2,2063.3,3.1042455]
[1772064837512,3.09452963,2064.4,2063.5,3.1042455]
[1772064839014,3.09452963,2064.2,2063.5,3.1042455]
[1772064839215,3.09452963,2064.2,2063.4,7.22]
[1772064839415,3.09452963,2064.2,2063.4,10.3242455]
[1772064839710,3.09452963,2064.2,2063.3,6.06038072]
[1772064839916,3.09452963,2064.2,2063.3,3.1042455]
[1772064841114,3.09452963,2064.2,2063.4,3.1042455]
[1772064842316,3.09452963,2064.4,2063.5,9.16462622]
[1772064842621,3.09452963,2064.4,2063.6,3.1042455]
[1772064844216,3.09452963,2064.6,2063.7,3.1042455]
[1772064844420,1.97001005,2065.2,2063.7,3.1042455]
[1772064844421,6.35,2065.2,2063.7,9.16462622]
[1772064844616,3.09452963,2064.8,2063.8,3.1042455]
[1772064845523,3.09849111,2064.8,2063.8,3.1042455]
[1772064846826,3.09849111,2064.8,2064.0,3.1042455]
[1772064846827,0.00396148,2064.8,2064.0,3.1042455]
[1772064847018,0.00396148,2064.8,2064.0,16.39648449]
[1772064847224,3.09452963,2065.3,2064.4,3.1042455]
[1772064847424,3.09452963,2065.3,2064.5,3.1042455]
[1772064848127,3.0988302,2065.3,2064.5,3.1042455]
[1772064850522,3.0988302,2065.3,2064.6,3.1042455]
[1772064850823,3.0988302,2065.3,2064.5,7.23]
[1772064851023,3.0988302,2065.3,2064.5,10.3342455]
[1772064851923,3.0988302,2065.3,2064.6,3.1042455]
[1772064852120,3.0988302,2065.3,2064.4,3.1042455]
[1772064856024,0.00430057,2065.3,2064.4,3.1042455]
[1772064856826,3.0988302,2065.3,2064.4,3.1042455]
[1772064858530,3.0988302,2065.3,2064.2,3.1042455]
[1772064860132,3.0988302,2065.3,2064.3,3.1042455]
[1772064860330,3.09452963,2065.7,2064.6,2.21215005]
[1772064860532,3.09452963,2065.7,2064.8,3.1042455]
[1772064861027,3.09452963,2065.7,2064.7,7.238]
[1772064861028,3.09452963,2065.4,2064.6,3.1042455]
[1772064861423,3.10068177,2065.4,2064.6,3.1042455]
[1772064861732,3.10068177,2065.4,2064.2,13.29838072]
[1772064861733,3.10068177,2065.4,2064.2,10.3422455]
[1772064861932,3.10068177,2065.4,2064.3,3.1042455]
[1772064863233,3.09452963,2065.3,2064.3,3.1042455]
[1772064866733,2.82387061,2064.9,2064.1,2.77708226]
[1772064866938,2.82387061,2064.7,2064.1,2.77708226]
[1772064867631,2.82387061,2064.7,2064.0,0.00385827]
[1772064867837,2.82387061,2064.6,2063.8,2.77708226]
[1772064868733,2.82387061,2064.5,2063.8,0.00612964]
[1772064869140,2.82387061,2064.4,2063.8,0.00612964]
[1772064870341,2.82387061,2064.4,2063.8,2.7832119]
[1772064870535,2.82387061,2064.4,2063.8,0.00612964]
[1772064870931,2.82387061,2064.2,2063.5,1.29050012]
[1772064871534,2.82387061,2064.2,2063.5,4.16670857]
[1772064871835,2.82524646,2064.5,2063.8,2.87620845]
[1772064872337,2.82524646,2064.5,2063.9,2.87620845]
[1772064874239,2.82524646,2064.7,2064.0,2.87620845]
[1772064877538,9.17224646,2064.9,2064.0,2.87620845]
[1772064877739,9.17224646,2064.9,2064.1,2.87620845]
[1772064879044,2.82524646,2064.8,2064.1,2.87620845]
[1772064879245,2.82524646,2065.0,2064.1,2.87620845]
[1772064879942,2.82524646,2064.1,2063.5,0.00418658]
[1772064880141,2.82524646,2063.8,2062.7,2.87620845]
[1772064880340,2.82524646,2063.8,2062.9,2.87620845]
[1772064880536,2.82524646,2063.8,2062.7,2.87620845]
[1772064880739,2.82524646,2063.8,2062.7,10.56354006]
[1772064880936,2.82524646,2063.8,2062.7,7.68733161]
[1772064881136,2.82524646,2063.8,2062.7,7.69226998]
[1772064881137,2.82524646,2063.5,2062.7,7.69226998]
[1772064881338,2.82524646,2063.4,2062.7,7.69226998]
[1772064881538,2.82524646,2063.4,2062.7,10.56847843]
[1772064881748,2.82524646,2063.4,2062.8,2.87620845]
[1772064882447,2.82524646,2063.4,2062.7,7.69226998]
[1772064883546,2.82524646,2063.4,2062.8,2.87620845]
[1772064883848,9.17324646,2063.6,2062.8,2.87620845]
[1772064884043,2.82524646,2063.5,2063.0,2.87620845]
[1772064884444,2.82524646,2063.5,2062.7,0.00493837]
[1772064884644,2.82524646,2063.2,2062.7,7.69226998]
[1772064887159,2.82524646,2063.2,2062.3,2.87620845]
[1772064887160,2.33747825,2063.0,2062.3,2.87620845]
[1772064887457,2.33747825,2062.9,2062.3,2.87620845]
[1772064888056,2.33747825,2062.9,2062.3,2.88133551]
[1772064888460,0.33022999,2062.8,2062.3,2.88133551]
[1772064889354,0.25483701,2062.8,2062.3,2.88133551]
[1772064889562,6.35,2063.2,2062.3,2.88133551]
[1772064889963,9.04892415,2063.2,2062.3,2.88133551]
[1772064890962,9.04892415,2063.2,2062.4,2.87620845]
[1772064890963,6.35,2063.2,2062.4,2.87620845]
[1772064891158,2.7065603,2063.4,2062.4,2.87620845]
[1772064891662,2.69299405,2063.2,2062.4,2.87620845]
[1772064891864,1.97007783,2063.1,2062.4,2.87620845]
[1772064892064,2.69299405,2063.0,2062.3,2.88133551]
[1772064892864,9.04399405,2063.0,2062.3,2.88133551]
[1772064894060,6.351,2063.0,2062.3,2.88133551]
[1772064895466,2.63047369,2062.9,2062.3,2.88133551]
[1772064896858,6.351,2063.3,2062.3,4.85141334]
[1772064897163,6.351,2063.2,2062.4,3.64347807]
[1772064900361,2.56512935,2063.6,2062.6,3.64347807]
[1772064900562,6.35844998,2063.6,2062.6,3.64347807]
[1772064900764,2.55282847,2063.5,2062.4,3.64347807]
[1772064901070,2.55282847,2063.3,2062.4,3.64347807]
[1772064901272,2.55282847,2063.1,2062.4,3.64347807]
[1772064901564,3.79332063,2063.3,2062.5,3.64347807]
[1772064901966,2.53581484,2063.2,2062.5,3.64347807]
[1772064903270,3.79332063,2063.3,2062.5,3.64347807]
[1772064903673,2.50980651,2063.2,2062.5,3.64347807]
[1772064904063,3.79332063,2063.3,2062.5,3.64347807]
[1772064904270,6.25523824,2063.3,2062.5,3.64347807]
[1772064905175,2.44993703,2063.2,2062.5,3.64347807]
[1772064905371,2.44993703,2063.1,2062.5,3.64347807]
[1772064905679,2.43623384,2062.9,2062.3,0.00512706]
[1772064906269,2.43623384,2062.9,2062.3,3.64860513]
[1772064906670,3.79332063,2063.1,2062.3,3.64860513]
[1772064909974,6.13515293,2063.1,2062.3,3.64860513]
[1772064910271,2.3418323,2063.0,2062.3,3.64860513]
[1772064910571,3.79332063,2063.1,2062.3,3.64860513]
[1772064911274,6.12357867,2063.1,2062.3,3.64860513]
[1772064912071,2.33025804,2063.1,2062.3,3.64860513]
[1772064914471,2.24789588,2063.0,2062.3,3.64860513]
[1772064918068,2.24425852,2062.9,2062.3,3.64860513]
[1772064918371,3.79332063,2063.0,2062.4,3.64347807]
[1772064918570,2.18364587,2063.0,2062.4,3.64347807]
[1772064918976,2.23309793,2063.4,2062.4,3.64347807]
[1772064919179,2.23309793,2063.4,2062.5,3.64347807]
[1772064919368,6.691,2063.7,2062.6,3.64347807]
[1772064919573,3.75519685,2063.6,2062.6,3.64347807]
[1772064924576,3.75519685,2063.6,2062.6,3.88584807]
[1772064924880,3.75519685,2063.6,2062.8,3.64347807]
[1772064926082,3.75519685,2063.6,2062.6,3.54379887]
[1772064926279,3.75519685,2063.6,2062.7,3.54379887]
[1772064931591,3.75519685,2063.6,2062.9,3.50802868]
[1772064931983,0.00555028,2063.8,2063.1,3.50802868]
[1772064932286,3.64169644,2064.1,2063.3,3.50802868]
[1772064932489,3.64169644,2064.3,2063.5,3.50802868]
[1772064933286,3.64521585,2064.3,2063.5,3.50802868]
[1772064933684,3.64521585,2064.3,2063.3,3.50802868]
[1772064934084,3.64521585,2064.3,2063.3,3.75031868]
[1772064939491,0.00351941,2064.3,2063.3,3.75031868]
[1772064940782,3.64521585,2064.3,2063.3,3.75031868]
[1772064941488,0.00351941,2064.3,2063.6,3.50802868]
[1772064941789,0.00351941,2064.3,2063.7,3.50802868]
[1772064942989,3.64169644,2065.0,2063.8,3.50802868]
[1772064943182,3.64169644,2065.0,2064.0,3.50802868]
[1772064943382,3.64169644,2065.0,2064.2,3.50802868]
[1772064943587,3.64169644,2065.5,2064.2,3.50802868]
[1772064943991,3.64722617,2065.5,2064.2,3.51429843]
[1772064944786,3.64722617,2065.5,2064.6,3.50802868]
[1772064944984,3.64722617,2065.5,2064.7,3.50802868]
[1772064945791,3.64722617,2065.5,2064.4,3.50802868]
[1772064946588,0.00552973,2065.5,2064.6,3.50802868]
[1772064948091,3.64169644,2066.0,2064.6,3.50802868]
[1772064948599,3.64169644,2066.0,2064.8,3.50802868]
[1772064948793,3.64169644,2066.0,2065.0,3.50802868]
[1772064949196,3.64753941,2066.0,2065.0,3.50802868]
[1772064954296,3.64753941,2066.0,2064.9,7.23]
[1772064954500,3.64169644,2065.5,2064.6,3.50802868]
[1772064956197,3.64169644,2065.5,2064.3,3.47935049]
[1772064957199,3.64169644,2065.5,2064.5,3.47935049]
[1772064957600,3.51125616,2065.6,2064.5,3.47935049]
[1772064960696,3.51125616,2065.6,2064.2,0.00626975]
[1772064960697,3.51125616,2065.3,2064.2,0.00626975]
[1772064960903,3.51125616,2064.7,2064.0,3.47935049]
[1772064961103,3.51125616,2065.1,2063.6,3.47935049]
[1772064961405,3.51125616,2065.1,2063.8,3.47935049]
[1772064961799,3.51125616,2064.7,2063.8,3.48378292]
[1772064961999,3.51125616,2064.6,2063.8,3.48378292]
[1772064962707,6.346,2064.7,2063.4,3.47935049]
[1772064962708,3.51125616,2064.4,2063.4,3.47935049]
[1772064962897,3.51125616,2064.4,2062.7,7.79353727]
[1772064963101,3.51125616,2064.4,2062.5,1.97257605]
[1772064963102,3.51125616,2063.8,2062.5,3.47935049]
[1772064963305,3.51125616,2063.7,2062.5,3.47935049]
[1772064963705,3.51745128,2063.7,2062.5,3.4848869]
[1772064964005,3.51745128,2063.7,2062.7,3.47935049]
[1772064966608,3.51745128,2063.7,2062.5,0.00553641]
[1772064966609,1.97257605,2063.5,2062.5,3.4848869]
[1772064966802,3.51125616,2063.4,2062.5,3.4848869]
[1772064971915,3.51125616,2063.6,2062.5,3.4848869]
[1772064973714,0.00619512,2063.7,2062.7,5.45192654]
[1772064973914,0.00619512,2063.7,2062.8,3.47935049]
[1772064974310,1.97257605,2064.6,2063.1,3.47935049]
[1772064974311,3.51125616,2064.2,2063.1,3.47935049]
[1772064975414,3.51705919,2064.2,2063.1,3.47935049]
[1772064976116,3.51125616,2063.9,2062.9,3.47935049]
[1772064977015,3.51125616,2063.6,2062.6,3.47935049]
[1772064984920,0.00580303,2064.2,2062.7,3.72171049]
[1772064985126,3.51125616,2064.1,2062.7,3.72171049]
[1772064985921,0.00580303,2064.2,2063.1,3.03299606]
[1772064986124,0.00580303,2064.2,2063.2,3.03299606]
[1772064986423,3.0915619,2065.0,2063.6,3.03299606]
[1772064986622,3.0915619,2065.0,2063.5,0.24227]
[1772064986623,3.0915619,2065.0,2063.8,3.03299606]
[1772064987129,3.0915619,2065.2,2064.1,3.03299606]
[1772064987427,3.0953142,2065.2,2064.2,3.03299606]
[1772064988122,3.0953142,2065.2,2064.1,1.9738348]
[1772064988123,0.0037523,2065.2,2064.5,3.03299606]
[1772064990434,3.0915619,2065.6,2064.6,1.96985447]
[1772064990630,3.0915619,2065.6,2064.7,3.03299606]
[1772064991030,1.96985447,2066.1,2064.7,3.03299606]
[1772064991233,3.0915619,2066.0,2065.0,3.03299606]
[1772064991438,0.00487488,2066.0,2065.3,3.26070717]
[1772064991827,1.96985447,2065.9,2065.1,3.26070717]
[1772064992130,3.30134086,2066.0,2065.1,3.26070717]
[1772064994032,0.00487488,2066.0,2065.6,3.26070717]
[1772064994231,3.29646598,2066.8,2065.8,3.26070717]
[1772064994427,3.29646598,2066.6,2065.8,3.26070717]
[1772064994627,3.29646598,2066.2,2065.2,3.26070717]
[1772064995029,1.96985447,2066.0,2065.0,3.26070717]
[1772064995238,3.29646598,2065.9,2065.1,3.26070717]
[1772064995937,0.00563855,2066.0,2065.3,3.26070717]
[1772064996537,3.30210453,2066.0,2065.1,3.26070717]
[1772064997639,3.30210453,2066.0,2065.2,3.26070717]
[1772064997839,0.00563855,2066.0,2065.2,3.26070717]
[1772065000639,3.29646598,2066.4,2065.4,3.26070717]
[1772065001538,3.30176041,2066.4,2065.4,3.26070717]
[1772065003137,1.96985447,2066.3,2065.4,3.26070717]
[1772065003344,3.29646598,2066.2,2065.4,3.26070717]
[1772065004435,3.29646598,2066.0,2065.1,3.26070717]
[1772065004634,6.35029443,2066.4,2065.1,3.26070717]
[1772065004635,3.29646598,2066.2,2065.5,3.26070717]
[1772065005743,0.00529443,2066.4,2065.8,3.26070717]
[1772065005943,3.29646598,2067.6,2066.4,3.26070717]
[1772065006448,3.29646598,2067.4,2066.4,3.26070717]
[1772065006851,3.29646598,2067.4,2065.9,3.26070717]
[1772065006852,3.29646598,2067.1,2065.9,3.26070717]
[1772065007445,3.29646598,2067.1,2066.2,3.26070717]
[1772065008845,10.24635454,2068.6,2067.0,1.96985447]
[1772065009055,3.29646598,2068.5,2067.1,3.26070717]
[1772065009250,3.29646598,2068.0,2067.1,3.26070717]
[1772065009847,0.00412681,2068.0,2067.4,3.26070717]
[1772065010053,3.29646598,2067.9,2067.1,3.26594499]
[1772065010958,0.00412681,2068.0,2067.4,3.26070717]
[1772065011853,0.00232566,2068.0,2067.6,3.26070717]
[1772065012055,3.29879164,2068.0,2067.4,3.26070717]
[1772065012248,3.29879164,2068.0,2067.1,3.26594499]
[1772065012755,3.29646598,2067.6,2066.7,3.26070717]
[1772065013353,3.29646598,2067.4,2066.2,3.26070717]
[1772065013559,1.96985447,2067.0,2066.0,3.26070717]
[1772065013748,3.29646598,2066.9,2066.0,3.26453701]
[1772065013948,3.29646598,2067.3,2066.0,3.26453701]
[1772065014755,3.29646598,2067.3,2066.2,3.26070717]
[1772065015154,3.29646598,2067.0,2066.2,3.26070717]
[1772065015359,3.29646598,2067.6,2066.2,3.26070717]
[1772065015564,3.29646598,2067.6,2066.5,3.26070717]
[1772065017257,2.89924165,2067.8,2066.8,3.14800606]
[1772065017458,2.90156731,2068.0,2066.8,3.14800606]
[1772065017860,0.00232566,2068.0,2067.5,3.14800606]
[1772065018161,2.90156731,2068.0,2067.5,3.15298921]
[1772065018362,2.89924165,2067.9,2067.0,3.14800606]
[1772065018664,0.00232566,2068.0,2067.2,3.14800606]
[1772065019350,0.00232566,2068.0,2067.2,3.15367192]
[1772065020352,3.94947503,2068.6,2067.5,3.14800606]
[1772065020556,1.05023338,2068.6,2067.8,3.14800606]
[1772065020860,1.04499557,2068.6,2067.8,3.14800606]
[1772065021359,0.24156,2069.6,2067.8,3.14800606]
[1772065021360,2.89924165,2069.9,2068.4,3.14800606]
[1772065021560,0.2415,2070.2,2068.4,3.14800606]
[1772065021561,2.89924165,2069.6,2068.4,3.14800606]
[1772065022367,2.90291424,2069.6,2068.4,3.14800606]
[1772065022659,2.89924165,2069.3,2068.4,3.14800606]
[1772065022866,2.89924165,2068.7,2067.7,3.14800606]
[1772065023466,2.89924165,2068.1,2067.3,3.14800606]
[1772065023665,2.90300292,2068.1,2067.3,3.14800606]
[1772065023868,0.00376127,2068.1,2067.5,3.14800606]
[1772065024663,2.90300292,2068.1,2067.5,3.14800606]
[1772065025863,2.90300292,2068.1,2067.3,3.14800606]
[1772065026164,2.90300292,2068.1,2067.2,3.15367192]
[1772065026765,4.87285739,2068.1,2067.2,3.15367192]
[1772065026965,2.89924165,2068.0,2067.2,3.15367192]
[1772065027564,0.00376127,2068.1,2067.2,3.15367192]
[1772065027964,2.90300292,2068.1,2067.2,3.15367192]
[1772065028371,0.00376127,2068.1,2067.4,1.96985447]
[1772065028570,0.00376127,2068.1,2067.5,3.14800606]
[1772065029365,2.89924165,2068.4,2067.5,3.14800606]
[1772065029366,2.89924165,2068.5,2067.5,3.14800606]
[1772065029568,2.89924165,2068.8,2067.5,3.14800606]
[1772065029869,8.30785447,2068.9,2067.5,3.14800606]
[1772065029870,2.89924165,2068.5,2067.5,3.14800606]
[1772065030566,2.90451831,2068.5,2067.5,3.14800606]
[1772065031070,2.89924165,2068.2,2067.5,3.14800606]
[1772065031270,2.89924165,2068.2,2067.3,3.14800606]
[1772065031770,2.89924165,2068.2,2067.2,3.15367192]
[1772065033870,2.89924165,2068.4,2067.2,3.15367192]
[1772065034063,2.89924165,2068.4,2067.5,3.14800606]
[1772065035670,2.89924165,2068.3,2067.3,3.14800606]
[1772065037662,0.00527666,2068.5,2067.3,3.14800606]
[1772065037868,0.00527666,2068.5,2067.8,3.38976606]
[1772065038075,0.00527666,2068.5,2067.8,3.14800606]
[1772065038370,2.90451831,2068.5,2067.8,3.14800606]
[1772065038571,0.00527666,2068.5,2067.8,3.14800606]
[1772065040779,2.90451831,2068.5,2067.8,3.14800606]
[1772065041275,2.90451831,2068.5,2067.3,7.79299727]
[1772065041276,2.90451831,2068.5,2067.3,3.14800606]
[1772065042680,2.89924165,2068.2,2067.3,3.14800606]
[1772065042973,1.96985447,2068.3,2067.0,3.14800606]
[1772065042974,4.86909612,2068.0,2067.0,3.14800606]
[1772065043270,2.89924165,2068.1,2067.2,3.15367192]
[1772065044982,2.89924165,2068.4,2067.3,3.14800606]
[1772065045277,2.89924165,2068.3,2067.3,3.14800606]
[1772065046075,0.00527666,2068.5,2067.3,3.14800606]
[1772065046276,2.91895201,2068.5,2067.3,3.14800606]
[1772065047575,0.00527666,2068.5,2067.6,2.98751584]
[1772065048374,6.337,2069.0,2067.9,2.98751584]
[1772065048579,2.91367535,2068.9,2067.9,2.98751584]
[1772065049384,2.91885182,2068.9,2067.9,2.98751584]
[1772065053295,2.91885182,2068.9,2067.7,2.85872733]
[1772065053991,2.91885182,2068.9,2067.8,2.85872733]
[1772065054387,2.91885182,2068.9,2067.9,0.24175]
[1772065054388,0.00517647,2068.9,2067.9,0.24175]
[1772065054590,0.00517647,2068.9,2068.0,2.85872733]
[1772065054789,2.93256963,2068.9,2068.0,2.85872733]
[1772065056490,2.93256963,2068.9,2067.7,2.85872733]
[1772065057794,2.92739316,2068.7,2067.7,2.85872733]
[1772065057993,2.92739316,2068.7,2067.8,2.85872733]
[1772065061898,0.00517647,2068.9,2068.0,2.85872733]
[1772065062200,0.00517647,2068.9,2068.1,2.85872733]
[1772065062397,2.92739316,2069.3,2068.1,3.10044733]
[1772065062593,2.92739316,2069.3,2068.2,2.85872733]
[1772065063404,2.93323568,2069.3,2068.3,2.85872733]
[1772065064000,0.00584252,2069.3,2068.5,2.85872733]
[1772065064300,2.93323568,2069.3,2068.5,2.85872733]
[1772065064802,2.93323568,2069.3,2068.4,0.2417]
[1772065064803,2.92739316,2069.9,2068.7,2.85872733]
[1772065065705,2.9312401,2069.9,2068.7,2.86440968]
[1772065067198,0.00384694,2069.9,2069.2,2.85872733]
[1772065067402,2.9312401,2069.9,2069.4,2.85872733]
[1772065067698,0.00384694,2069.9,2069.4,2.85872733]
[1772065067898,0.00384694,2069.9,2069.3,7.052]
[1772065067899,2.9312401,2069.9,2069.0,2.85872733]
[1772065070605,2.9312401,2069.9,2068.8,2.85872733]
[1772065071109,2.92739316,2069.6,2068.7,0.00568235]
[1772065071406,0.24154,2069.7,2068.4,2.85872733]
[1772065071407,2.92739316,2069.5,2068.4,2.85872733]
[1772065072407,2.92739316,2069.5,2068.4,2.86254942]
[1772065073907,2.92739316,2069.3,2068.4,0.00382209]
[1772065074201,6.334,2069.2,2068.4,0.00382209]
[1772065074406,2.92739316,2069.1,2068.4,0.00382209]
[1772065076102,2.92739316,2069.1,2068.4,2.920912]
[1772065076510,2.81996288,2069.3,2068.4,2.920912]
[1772065079703,45.02525748,2069.9,2068.4,2.920912]
[1772065079704,2.81996288,2069.8,2068.6,2.91708991]
[1772065080205,0.00384694,2069.9,2068.4,2.920912]
[1772065080206,2.81996288,2069.6,2068.4,2.920912]
[1772065080802,3.06152288,2069.6,2068.4,0.00382209]
[1772065081110,2.81996288,2069.2,2068.4,0.00382209]
[1772065081310,2.81996288,2069.0,2068.4,0.00382209]
[1772065081509,2.81996288,2069.0,2068.4,2.920912]
[1772065081902,2.81996288,2069.5,2068.4,2.920912]
[1772065082608,2.81996288,2069.5,2068.4,0.00382209]
[1772065082609,2.81996288,2069.3,2068.4,0.00382209]
[1772065082809,2.81996288,2069.1,2068.0,2.91708991]
[1772065083009,2.81996288,2068.7,2067.7,2.91708991]
[1772065083209,2.20479035,2068.6,2067.5,2.91708991]
[1772065083409,2.20479035,2068.6,2067.3,2.91708991]
[1772065083410,2.81996288,2068.4,2067.3,2.91708991]
[1772065083613,2.81996288,2068.2,2067.1,2.91708991]
[1772065083814,2.82624432,2068.2,2067.1,2.92300343]
[1772065084014,2.81996288,2068.0,2067.1,2.92300343]
[1772065084921,2.81996288,2068.0,2067.1,0.00591352]
[1772065085112,2.81996288,2068.0,2067.1,2.92300343]
[1772065085917,0.00628144,2068.2,2067.3,4.88021026]
[1772065086114,2.81996288,2068.7,2067.4,2.91708991]
[1772065086418,2.81996288,2069.4,2068.3,2.91708991]
[1772065086608,2.81996288,2069.4,2068.5,2.91708991]
[1772065087013,2.81996288,2069.8,2068.7,2.91708991]
[1772065087312,2.82524315,2069.8,2068.9,2.91708991]
[1772065091617,2.81996288,2069.6,2068.7,0.0046941]
[1772065091917,0.24681027,2069.8,2068.7,2.92178401]
[1772065091918,2.81996288,2069.4,2068.7,2.92178401]
[1772065092116,2.81996288,2069.4,2068.7,0.0046941]
[1772065093815,2.81996288,2069.6,2068.7,2.92178401]
[1772065095114,2.81996288,2069.4,2068.7,0.0046941]